[Event "15th Tashkent Open Agzamov 2022"]
[Site "Tashkent"]
[Date "2022.05.09"]
[Round "8.5"]
[White "Abdurakhmonov, Mukhammadali"]
[Black "Bernadskiy, Vitaliy"]
[Result "1-0"]
[ECO "A80"]
[WhiteElo "2308"]
[BlackElo "2636"]
[Annotator "TA"]
[PlyCount "75"]
[EventDate "2022.05.05"]
[EventType "swiss"]
[EventCountry "UZB"]
[SourceTitle "playchess.com"]
[Source "ChessBase"]
[SourceQuality "1"]
[TimeControl "5400+30"]

{[%evp 9,75,21,22,17,25,0,0,15,27,31,37,19,27,-35,0,-20,-18,-76,-88,-80,-86,-116,-122,-114,-114,-120,-27,-92,50,30,53,26,54,57,57,-45,-27,-22,-37,-68,-50,-68,-61,-163,-99,-100,-23,-39,0,0,7,7,85,0,367,-15,10,8,8,10,10,16,545,535,29996,29997,29997,29998]} 1. d4 {[%emt 0:00:04]} f5 {[%emt 0:01:18]} 2. Nf3 {[%emt 0:00:49]} Nf6 {[%emt 0:00:06]} 3. Bf4 {[%emt 0:00:49]} e6 {[%emt 0:01:38]} 4. e3 {[%emt 0:00:38]} b6 {[%emt 0:02:34]} 5. Nbd2 {[%emt 0:00:46]} Bb7 {[%emt 0:00:14]} 6. h3 {[%emt 0:03:04] A80: Dutch Defence: Unusual White second moves.} g6 {[%emt 0:00:33] [#]} 7. Rg1 $146 {[%emt 0:03:27]} ({Predecessor:} 7. Bd3 Bg7 8. c4 d6 9. O-O Nbd7 10. Qe2 Qe7 11. e4 e5 12. Bg5 f4 13. b4 {1-0 (57) Guichard,P (2415)-Paehtz,E (2473) Europe Echecs INT 2020}) 7... Bg7 {[%emt 0:05:13]} 8. g4 {[%emt 0:04:10] The position is equal.} fxg4 {[%emt 0:00:07]} 9. hxg4 {[%emt 0:00:16]} Nc6 {[%emt 0:00:08]} 10. Bc4 {[%emt 0:03:50]} Qe7 {[%emt 0:03:19]} 11. Ne5 {[%emt 0:10:32]} (11. Bxc7 $2 d5 12. g5 Nh5 13. Bxb6 axb6 $19) (11. Qe2 $11) 11... Nxe5 {[%emt 0:07:36]} 12. Bxe5 {[%emt 0:02:47]} O-O {[%emt 0:10:55]} 13. f3 {[%emt 0:08:54] Against Ne4} (13. Qe2 $11 {remains equal.}) 13... Nd5 $17 {[%emt 0:09:07]} 14. Qe2 {[%emt 0:01:03]} Bh6 {[%emt 0:08:15]} 15. Bxd5 {[%emt 0:15:00]} exd5 {[%emt 0:02:21]} 16. Nf1 {[%emt 0:01:10]} d6 {[%emt 0:06:24]} 17. Bg3 {[%emt 0:02:04]} a5 {[%emt 0:01:44]} (17... Rae8 $17 {[%cal Ob7a6] Strongly threatening ...Ba6!} 18. O-O-O Bxe3+ 19. Nxe3 Qxe3+ 20. Qxe3 Rxe3) 18. f4 {[%emt 0:03:23]} (18. Rh1 $11 {keeps the balance.} Ba6 19. Qf2 Bxf1 20. Rxh6) 18... c5 {[%emt 0:02:42]} ({Better is} 18... Ba6 $17 19. Qf3 Rae8) 19. Qh2 $14 {[%emt 0:03:41]} Bg7 {[%emt 0:01:13]} 20. O-O-O $1 {[%emt 0:00:12][%cal Of4f5]} Ba6 {[%emt 0:11:41]} 21. f5 {[%emt 0:01:52]} Rad8 {[%emt 0:03:32]} (21... gxf5 22. Bxd6 Qf7 23. gxf5 Qxf5 24. Ng3 $18) 22. Bf4 {[%emt 0:01:51]} (22. Re1 $14) 22... g5 $1 $36 {[%emt 0:00:57][%mdl 2048] Black has good play.} 23. Bg3 {[%emt 0:00:21]} a4 {[%emt 0:01:32][%cal Oa4a3]} 24. Qg2 {[%emt 0:06:46]} a3 $1 {[%emt 0:01:46] Hoping for ...axb2+.} 25. Qxd5+ {[%emt 0:03:21]} Kh8 {[%emt 0:00:02]} 26. Qe6 {[%emt 0:00:06]} (26. b3 $15) 26... axb2+ {[%emt 0:00:22]} (26... Qb7 $1 $19 27. bxa3 (27. Bxd6 $2 Rfe8 $19) 27... Be2) 27. Kb1 $17 {[%emt 0:00:05]} Qc7 {[%emt 0:05:01]} (27... Qxe6 $17 28. fxe6 Rf6) 28. Rh1 $11 {[%emt 0:04:28] And now Nd2 would win.} (28. Kxb2 $2 Be2 29. Rd2 Bxg4 $19) 28... cxd4 {[%emt 0:02:46]} 29. Nd2 {[%emt 0:08:32][%cal Oh1h7] Prevents Bc4. Intending Rxh7+! and mate.} Bf6 {[%emt 0:03:28]} 30. Ne4 {[%emt 0:01:09]} Rc8 {[%emt 0:03:45]} (30... Rde8 $1 $11 31. Nxf6 (31. Qxd6 Qxd6 32. Nxd6 Rxe3 $11) 31... Rxe6 32. Rxh7+ Qxh7 33. Nxh7 Kxh7 34. fxe6 dxe3) 31. Rh2 {[%emt 0:02:31] White is more active.} (31. c3 $2 dxc3 $1 32. Kc2 Bb5 $1 $19) ({White should play} 31. Qb3 $1 $16 Qc6 32. Nxf6 Rxf6 33. Rh2 (33. Qxb2 Be2 $11)) 31... Bc4 $2 {[%emt 0:03:47][%mdl 8192]} (31... d3 $1 $11 {and Black is okay.} 32. c3 Bc4 33. Bxd6 Bxe6 34. Bxc7 Bxf5 35. gxf5 Rxc7) 32. Bxd6 $2 {[%emt 0:02:07] [#]} (32. Qxd6 $18 Bxa2+ 33. Kxb2 (33. Kxa2 Qc4+ 34. Kb1 Qa4 $11)) 32... Qa7 {[%emt 0:00:50][%csl Gc4][%cal Ra7a2] [#]} 33. Rxh7+ $1 {[%emt 0:02:09]} Qxh7 {[%emt 0:00:19]} 34. Nxf6 {[%emt 0:00:18] White wants to mate with Nd5. Really sharp!} Bxe6 {[%emt 0:01:39]} 35. Nxh7 {[%emt 0:00:05]} Rfd8 {[%emt 0:00:32][%mdl 8192] [#]} (35... Rxf5 $11 {and Black has nothing to worry.} 36. gxf5 Bxf5 37. Rxd4 Bxh7) 36. Be5+ $1 $18 {[%emt 0:00:53]} ({Weaker is} 36. fxe6 Kxh7 37. Rxd4 Rh8 $16) ({Not} 36. Nxg5 Rxd6 37. fxe6 (37. Nxe6 dxe3 38. Re1 Rd2 $19) 37... Rdc6 $16) 36... Kxh7 {[%emt 0:00:32]} 37. Rh1+ {[%emt 0:00:06]} Kg8 {[%emt 0:00:02]} 38. fxe6 {[%emt 0:00:07] Weighted Error Value: White=0.34/Black=0.60} 1-0

[Event "15th Tashkent Open Agzamov 2022"]
[Site "Tashkent"]
[Date "2022.05.09"]
[Round "8.6"]
[White "Assaubayeva, Bibisara"]
[Black "Iskandarov, Misratdin"]
[Result "0-1"]
[ECO "E11"]
[WhiteElo "2439"]
[BlackElo "2601"]
[Annotator "TA"]
[PlyCount "80"]
[EventDate "2022.05.05"]
[EventType "swiss"]
[EventCountry "UZB"]
[SourceTitle "playchess.com"]
[Source "ChessBase"]
[SourceQuality "1"]
[TimeControl "5400+30"]

{[%evp 9,80,37,38,13,42,-46,-52,-117,-38,-106,-111,-121,-120,-108,-115,-114,-126,-132,-140,-141,-150,-149,-158,-202,-212,-200,-196,-184,-141,-141,-147,-170,-173,-202,-189,-198,-201,-204,-198,-203,-200,-202,-186,-201,-193,-206,-206,-208,-209,-206,-202,-215,-207,-218,-219,-219,-219,-292,-288,-308,-306,-302,-245,-252,-235,-235,-236,-320,-332,-448,-439,-454,-395]} 1. d4 {[%emt 0:00:03]} e6 {[%emt 0:01:01]} 2. c4 {[%emt 0:00:47]} Bb4+ {[%emt 0:00:18]} 3. Bd2 {[%emt 0:03:22]} Qe7 {[%emt 0:03:29]} 4. g3 {[%emt 0:03:09]} Nc6 {[%emt 0:01:02][%cal Bb8c6,Bc6e5,Be5d3,Bd3f2][%mdl 32]} 5. Nf3 {[%emt 0:06:08]} Nf6 {[%emt 0:03:23]} 6. b3 {[%emt 0:00:16] E11: Bogo-Indian.} e5 {[%emt 0:01:17] [#]} 7. dxe5 $146 {[%emt 0:37:47]} (7. d5 $14) ({Predecessor:} 7. d5 Bxd2+ 8. Qxd2 Nb8 9. d6 Qxd6 10. Qxd6 cxd6 11. Nc3 Ke7 12. Bg2 d5 13. Nxe5 d6 {½-½ (59) Melkumyan,H (2663)-Sadhwani,R (2545) chess24.com INT 2020}) 7... Nxe5 $15 {[%emt 0:00:45][%cal Re5f3]} 8. Bg2 {[%emt 0:04:38]} (8. Nxe5 $15 Qxe5 9. Bxb4 Qxa1 10. Qc2) 8... Nd3+ $1 $17 {[%emt 0:08:01]} 9. Kf1 {[%emt 0:00:19] [#]} Nxf2 {[%emt 0:00:12][%mdl 512] Black is much more active.} 10. Kxf2 {[%emt 0:02:53] [#] Hoping for Bxb4.} Bxd2 {[%emt 0:00:05]} 11. Nbxd2 {[%emt 0:00:12]} Ng4+ {[%emt 0:00:07]} 12. Ke1 {[%emt 0:00:03] Qb1 is the strong threat.} Ne3 $1 {[%emt 0:00:25][%csl LRd1,LRg2]} 13. Qc1 {[%emt 0:00:02] Strongly threatening Bh3.} Nxg2+ {[%emt 0:00:11]} 14. Kf2 {[%emt 0:00:02] And now e4 would win.} Ne3 {[%emt 0:00:11]} 15. Re1 {[%emt 0:04:53]} O-O {[%emt 0:01:40]} (15... Nf5 16. e4 Nh6 17. c5 $15) 16. Qc3 {[%emt 0:00:24]} Re8 {[%emt 0:00:30]} 17. Nf1 {[%emt 0:01:28][%cal Rf1e3]} Ng4+ {[%emt 0:01:19]} ({And not} 17... Nf5 18. e4 Qc5+ 19. Kg2 $17) 18. Kg1 {[%emt 0:02:54]} d6 {[%emt 0:01:20]} 19. e4 {[%emt 0:00:18]} Bd7 {[%emt 0:00:59]} 20. Re2 {[%emt 0:01:23]} Ne5 {[%emt 0:05:00]} 21. Nxe5 {[%emt 0:04:22]} Qxe5 {[%emt 0:02:01]} 22. Qxe5 {[%emt 0:00:05]} Rxe5 {[%emt 0:00:06]} ({Not} 22... dxe5 23. Ne3 $17) 23. Rae1 {[%emt 0:00:03]} Rae8 {[%emt 0:00:25]} 24. Kf2 {[%emt 0:00:08]} Bc6 {[%emt 0:01:27][%cal Rc6e4]} 25. Nd2 {[%emt 0:00:06]} h5 {[%emt 0:03:03]} 26. Re3 {[%emt 0:00:30]} a5 {[%emt 0:00:20]} 27. R1e2 {[%emt 0:01:58]} f6 {[%emt 0:01:33]} 28. Re1 {[%emt 0:00:45]} Kf7 {[%emt 0:00:40]} 29. R1e2 {[%emt 0:00:30]} g5 {[%emt 0:01:04]} 30. Re1 {[%emt 0:00:34]} Kg6 {[%emt 0:06:09]} 31. R3e2 {[%emt 0:01:25]} b5 {[%emt 0:01:06]} 32. cxb5 {[%emt 0:09:58]} Bxb5 {[%emt 0:00:06]} 33. Re3 {[%emt 0:00:03]} Rc5 {[%emt 0:00:08] Inhibits Rc3. Threatens to win with ...Rc2.} 34. Nb1 {[%emt 0:01:58]} Rc2+ {[%emt 0:02:03]} 35. Kg1 {[%emt 0:01:04]} Bd7 {[%emt 0:06:45]} ({Weaker is} 35... Rxa2 36. Nc3 Rd2 37. Nxb5 $16) 36. R3e2 {[%emt 0:00:42]} Rxe2 {[%emt 0:00:41]} 37. Rxe2 {[%emt 0:00:02]} d5 {[%emt 0:00:13][%cal Bd6d5,Bd5e4,Be4e3][%mdl 32]} 38. Nd2 {[%emt 0:01:09]} Bc6 {[%emt 0:00:54][%cal Rd5e4]} 39. Re1 {[%emt 0:00:32]} dxe4 {[%emt 0:00:12]} 40. Rc1 {[%emt 0:00:02] [#]} e3 $1 {[%emt 0:00:35] Weighted Error Value: White=0.25 (precise) /Black=0.05 (flawless)} 0-1

[Event "15th Tashkent Open Agzamov 2022"]
[Site "Tashkent"]
[Date "2022.05.09"]
[Round "8.7"]
[White "Mchedlishvili, Mikheil"]
[Black "Madaminov, Mukhiddin"]
[Result "1-0"]
[ECO "C78"]
[WhiteElo "2595"]
[BlackElo "2308"]
[Annotator "TA"]
[PlyCount "73"]
[EventDate "2022.05.05"]
[EventType "swiss"]
[EventCountry "UZB"]
[SourceTitle "playchess.com"]
[Source "ChessBase"]
[SourceQuality "1"]
[TimeControl "5400+30"]

{[%evp 13,73,13,18,6,8,0,7,9,10,0,0,0,16,15,29,0,0,0,0,4,12,0,0,0,15,9,10,0,10,9,0,0,23,-39,-47,-68,-48,-91,-97,-97,83,40,141,0,212,210,409,392,635,595,1145,1136,1079,1150,1139,1110,1100,1094,1184,1163,1180,1001]} 1. e4 {[%emt 0:00:06]} e5 {[%emt 0:00:56]} 2. Nf3 {[%emt 0:00:27]} Nc6 {[%emt 0:00:54]} 3. Bb5 {[%emt 0:00:43][%cal Bf1b5,Bb5a4,Ba4b3][%mdl 32]} a6 {[%emt 0:03:40]} 4. Ba4 {[%emt 0:00:35]} Nf6 {[%emt 0:00:40]} 5. d3 {[%emt 0:00:47]} Bc5 {[%emt 0:01:27]} 6. c3 {[%emt 0:01:16]} O-O {[%emt 0:04:59]} 7. O-O {[%emt 0:01:17]} d6 {[%emt 0:01:39]} 8. Re1 $1 {[%emt 0:03:41] C78: Ruy Lopez: Archangelsk and Möller Defences.} b5 {[%emt 0:03:40]} 9. Bb3 {[%emt 0:01:19]} h6 {[%emt 0:04:27]} 10. Nbd2 {[%emt 0:12:07] The position is equal.} Bb6 {[%emt 0:10:43]} 11. Nf1 {[%emt 0:04:06]} Ne7 {[%emt 0:02:06]} 12. h3 {[%emt 0:03:59]} Ng6 {[%emt 0:04:14]} 13. Ng3 {[%emt 0:04:12]} Be6 {[%emt 0:09:50]} 14. Bc2 {[%emt 0:02:04]} c5 {[%emt 0:03:52]} 15. d4 {[%emt 0:01:11] [#]} cxd4 $146 {[%emt 0:03:22]} ({Predecessor:} 15... Qc8 16. d5 Bxh3 17. gxh3 Qxh3 18. c4 bxc4 19. Qe2 c3 20. Qf1 Qg4 21. Nh2 Qd7 22. bxc3 Nh4 23. Bd1 c4 24. Be3 Ba5 {½-½ (24) Rosh,J (1814)-Dushyant,S (2261) Novi Sad 2021}) 16. cxd4 {[%emt 0:00:25]} Re8 {[%emt 0:11:00]} 17. Be3 {[%emt 0:02:04]} Ba5 {[%emt 0:01:58]} 18. Bd2 {[%emt 0:17:25]} Bxd2 {[%emt 0:01:55]} 19. Qxd2 {[%emt 0:00:06]} Qb6 {[%emt 0:01:39]} 20. Rad1 {[%emt 0:03:57]} Rac8 {[%emt 0:02:36]} 21. Bb1 {[%emt 0:02:36]} a5 {[%emt 0:01:49]} 22. Nf5 {[%emt 0:02:28]} Red8 {[%emt 0:02:17]} 23. Nxh6+ {[%emt 0:04:23]} gxh6 $15 {[%emt 0:01:46]} 24. Qxh6 {[%emt 0:00:05]} Nh7 {[%emt 0:03:33]} 25. d5 {[%emt 0:03:37]} Bd7 {[%emt 0:00:55]} 26. h4 {[%emt 0:00:18] [#] Black must now prevent h5.} Bg4 {[%emt 0:05:29]} ({Much less strong is} 26... Nf6 27. Nh2 $16) (26... Re8 $1 $17 {and life is bright.} 27. Rc1 (27. h5 Nf4 $17) 27... Rc4) 27. Rd3 {[%emt 0:01:59] Threatens to win with Nh2.} Nf4 {[%emt 0:06:33]} (27... Nf6 $14) 28. Rde3 {[%emt 0:09:40] The board is on fire.} ({White should try} 28. Ng5 $16 Nxg5 29. Qxg5+ Kh7 30. Qxg4) 28... Qa7 $2 {[%emt 0:04:41] [#]} (28... f6 $11 29. Nh2 Kh8 30. Nxg4 Rg8 31. Nxf6 Rxg2+ 32. Kh1 Rc7 33. Nxh7 (33. Rg1 $2 Rxg1+ 34. Kxg1 Rg7+ 35. Kf1 Qd8 $19) 33... Rg6 34. Qf8+ Rg8) 29. Nh2 $1 $40 {[%emt 0:03:35][%cal Bf3h2,Bh2g4,Bg4f6][%mdl 160] White has strong attack.} ({And not} 29. Ng5 f6 30. Nxh7 Qxh7 31. Qxh7+ Kxh7 $17) 29... Kh8 $2 {[%emt 0:00:28]} (29... f5) 30. Nxg4 {[%emt 0:04:33] Threatening mate with Nf6.} Rg8 $2 {[%emt 0:00:07]} (30... f5) 31. Nf6 {[%emt 0:00:58][%csl Gf6][%cal Rh6h7] White is clearly winning.} Rxg2+ {[%emt 0:00:05]} 32. Kh1 {[%emt 0:00:01][%csl Gf6][%cal Rh6h7]} Rg7 {[%emt 0:00:23]} 33. Rg1 {[%emt 0:00:33][%csl Gg1][%cal Rh6g7]} Ng6 {[%emt 0:00:28]} 34. h5 {[%emt 0:01:51]} Qe7 {[%emt 0:01:13]} 35. Rf3 {[%emt 0:00:16]} Rf8 {[%emt 0:01:03]} 36. Rgg3 {[%emt 0:01:07]} b4 {[%emt 0:01:26]} 37. Kg1 {[%emt 0:00:25] Weighted Error Value: White=0.15 (very precise) /Black=0.48} 1-0

[Event "15th Tashkent Open Agzamov 2022"]
[Site "Tashkent"]
[Date "2022.05.09"]
[Round "8.8"]
[White "Mazhkenov, Alisher"]
[Black "Vakhidov, Jakhongir"]
[Result "0-1"]
[ECO "E74"]
[WhiteElo "2045"]
[BlackElo "2552"]
[Annotator "TA"]
[PlyCount "86"]
[EventDate "2022.05.05"]
[EventType "swiss"]
[EventCountry "UZB"]
[SourceTitle "playchess.com"]
[Source "ChessBase"]
[SourceQuality "1"]
[TimeControl "5400+30"]

{[%evp 17,86,27,32,0,0,0,0,0,0,0,71,0,0,-18,72,-8,151,146,134,141,139,102,86,102,108,113,121,112,124,116,121,104,158,161,147,51,149,-133,-119,-195,-191,-403,-406,-412,-412,-406,-402,-375,-357,-358,-355,-341,-322,-372,-341,-378,-335,-372,-376,-610,-593,-603,-611,-599,-597,-711,-698,-702,-683,-634,-544]} 1. d4 {[%emt 0:00:02]} Nf6 {[%emt 0:04:13]} 2. c4 {[%emt 0:00:05]} g6 {[%emt 0:03:02]} 3. Nc3 {[%emt 0:00:05]} Bg7 {[%emt 0:00:04]} 4. e4 {[%emt 0:00:04]} d6 {[%emt 0:00:05]} 5. Be2 {[%emt 0:00:19]} O-O {[%emt 0:00:07]} 6. Bg5 {[%emt 0:00:03]} c5 {[%emt 0:05:51]} 7. d5 {[%emt 0:04:42]} a6 {[%emt 0:00:12]} 8. a4 {[%emt 0:02:47]} Qa5 {[%emt 0:00:41] 8...e6 is more fashionable.} 9. Qd2 {[%emt 0:01:31]} Nbd7 {[%emt 0:00:15][%cal Oh7h6]} 10. Ra3 {[%emt 0:02:48] E74: King's Indian: Averbakh Variation: 6...c5.} Qb4 $1 {[%emt 0:09:44]} 11. Nf3 {[%emt 0:06:42]} h6 {[%emt 0:15:16] [#]} 12. Be3 $146 {[%emt 0:15:45] The position is equal.} ({Predecessor:} 12. Bf4 g5 13. Bg3 Nh5 14. O-O Nxg3 15. hxg3 Ne5 16. Nxe5 Bxe5 17. Qc2 Qa5 18. f4 {1-0 (26) Laux,T (2230)-Dueball,J (2445) Germany 1991}) 12... Ng4 {[%emt 0:01:21]} 13. Bf4 $1 {[%emt 0:01:24]} Nge5 {[%emt 0:11:32]} (13... g5 $11 14. Bg3 Nge5) 14. Nxe5 {[%emt 0:11:28]} (14. Qc2 $1 $16) 14... Nxe5 $11 {[%emt 0:00:17]} 15. Qc2 {[%emt 0:04:16]} f5 {[%emt 0:13:34]} (15... Nxc4 $11 {remains equal.} 16. Rb3 Bxc3+ 17. Rxc3 g5) 16. Bd2 {[%emt 0:03:06]} ({White should try} 16. Rb3 $16 Qa5 17. O-O) 16... Bd7 $2 {[%emt 0:13:13]} ({Better is} 16... Nxc4 $11 17. Rb3 Bxc3 18. Rxb4 Bxd2+ 19. Kf1 (19. Kd1 Bxb4 20. Bxc4 b5 $11) 19... Bxb4 20. Qxc4 b5) 17. Nd1 $16 {[%emt 0:19:04]} Qb6 {[%emt 0:00:20]} 18. f4 {[%emt 0:01:25]} Ng4 {[%emt 0:02:16]} 19. h3 {[%emt 0:04:19]} Nf6 {[%emt 0:00:06]} 20. exf5 {[%emt 0:00:22]} Bxf5 {[%emt 0:01:01]} 21. Bd3 {[%emt 0:00:41]} e6 {[%emt 0:01:14]} 22. a5 {[%emt 0:02:56]} (22. dxe6 {is interesting.} Rae8 23. O-O d5 24. Bxf5 gxf5 25. e7) 22... Qc7 {[%emt 0:02:58]} 23. dxe6 {[%emt 0:00:49]} Bxd3 {[%emt 0:06:11]} 24. Rxd3 {[%emt 0:01:56] Re3 is the strong threat.} Rae8 {[%emt 0:01:49]} (24... Ne4 $142) 25. Re3 {[%emt 0:03:46]} Nh5 {[%emt 0:00:02]} 26. g3 {[%emt 0:01:54]} (26. Qxg6 Nxf4 27. Qg3 (27. Qg4 h5 $11) 27... Nxe6 $11) (26. Nc3 $16) 26... Rf6 {[%emt 0:00:14]} (26... Qc6 $14 27. O-O Bd4) 27. Rh2 $2 {[%emt 0:01:52][%mdl 8192]} (27. O-O $1 $16) 27... Rfxe6 $17 {[%emt 0:00:20] Hoping for ...Bd4.} 28. Rhe2 {[%emt 0:00:38] [#]} (28. Rg2 $17) 28... Qc6 $1 $19 {[%emt 0:01:48] ( -> ...Qh1+)} 29. Nf2 {[%emt 0:01:23] [#] Against Qh1+} (29. Rxe6 Qh1+ 30. Kf2 Qh2+ 31. Kf3 Qxg3+ 32. Ke4 Nf6#) (29. Bc3 Rxe3 30. Nxe3 Qh1+ 31. Kd2 Bxc3+ 32. bxc3 (32. Kxc3 $2 Kf7 $19)) 29... Qg2 $1 {[%emt 0:00:17][%cal Rg2g1]} 30. Kd1 {[%emt 0:01:41]} Rxe3 {[%emt 0:00:30] Really sharp!} 31. Rxe3 {[%emt 0:00:36]} Rxe3 {[%emt 0:01:33]} (31... Qf1+ 32. Re1 Rxe1+ 33. Bxe1 Nxg3 34. Qd3 $17) 32. Bxe3 {[%emt 0:00:03]} Qg1+ {[%emt 0:00:31]} 33. Kd2 {[%emt 0:00:43]} Nxg3 {[%emt 0:00:10] Strongly threatening ...Nf1+.} 34. Qd3 {[%emt 0:00:51]} Nf5 {[%emt 0:02:15]} ({Weaker is} 34... Bxb2 35. Kc2 $14) (34... Qa1 $2 35. Nd1 Qxa5+ 36. Kc2 $19) 35. Ne4 {[%emt 0:02:55]} Qh2+ {[%emt 0:01:03]} ({Stronger than} 35... Qxe3+ 36. Qxe3 Nxe3 37. Kxe3 $15) 36. Nf2 {[%emt 0:00:56]} Qg3 {[%emt 0:01:02]} 37. Ne4 {[%emt 0:01:20] [#]} Qg2+ {[%emt 0:02:26]} ({And not} 37... Qxe3+ 38. Qxe3 Nxe3 39. Kxe3 $11) 38. Nf2 $2 {[%emt 0:01:21]} (38. Bf2 Bd4 39. Ke1) 38... Bxb2 {[%emt 0:00:31] And now ...Kf7 would win. Black is clearly winning.} 39. Qe4 {[%emt 0:00:30]} Qxe4 {[%emt 0:00:24]} 40. Nxe4 {[%emt 0:00:03]} Kf7 {[%emt 0:00:15]} 41. Kd3 {[%emt 0:01:25]} Nxe3 {[%emt 0:00:32]} 42. Kxe3 {[%emt 0:00:02]} Ke6 {[%emt 0:00:08]} 43. Kf3 {[%emt 0:00:26]} Ba3 {[%emt 0:00:33] Weighted Error Value: White=0.57/Black=0.26 (precise)} 0-1

[Event "15th Tashkent Open Agzamov 2022"]
[Site "Tashkent"]
[Date "2022.05.09"]
[Round "8.9"]
[White "Vokhidov, Shamsiddin"]
[Black "Abdisalimov, Abdimalik"]
[Result "1-0"]
[ECO "B51"]
[WhiteElo "2536"]
[BlackElo "2435"]
[Annotator "TA"]
[PlyCount "43"]
[EventDate "2022.05.05"]
[EventType "swiss"]
[EventCountry "UZB"]
[SourceTitle "playchess.com"]
[Source "ChessBase"]
[SourceQuality "1"]
[TimeControl "5400+30"]

{[%evp 11,43,14,10,0,18,0,25,0,13,13,18,12,16,10,19,20,39,31,254,0,-22,0,87,91,87,85,132,118,115,98,284,264,197,294]} 1. e4 {[%emt 0:00:05]} c5 {[%emt 0:00:05]} 2. Nf3 {[%emt 0:00:07]} d6 {[%emt 0:00:08]} 3. Bb5+ {[%emt 0:00:13]} Nd7 {[%emt 0:00:05]} 4. d4 {[%emt 0:00:06]} cxd4 {[%emt 0:00:17]} 5. Qxd4 {[%emt 0:00:08]} a6 {[%emt 0:00:06]} 6. Bxd7+ {[%emt 0:00:28]} Bxd7 {[%emt 0:00:04]} 7. c4 {[%emt 0:00:05] 7.Nc3 gains popularity. B51: Sicilian: Moscow Variation (3 Bb5+) without 3...Bd7.} e5 {[%emt 0:00:18]} 8. Qd3 {[%emt 0:00:07]} b5 {[%emt 0:00:28]} 9. b3 {[%emt 0:00:53] White has an edge.} h6 {[%emt 0:01:12]} 10. O-O {[%emt 0:00:23]} Nf6 {[%emt 0:00:03]} 11. Nc3 {[%emt 0:00:05]} bxc4 {[%emt 0:02:20]} 12. bxc4 {[%emt 0:01:47]} Be7 {[%emt 0:00:10] [#]} 13. Rd1 $146 {[%emt 0:08:06][%cal Oc4c5] With the idea c5!} ({Predecessor:} 13. Be3 O-O 14. Rfc1 Qa5 15. Nd2 Rfc8 16. Nb3 Qc7 17. Nd5 Nxd5 18. cxd5 Qd8 19. h3 {0-1 (101) Carlsson,P (2463)-Sjugirov,S (2663) St Petersburg 2018}) 13... Rc8 {[%emt 0:10:09]} 14. Ba3 {[%emt 0:17:42]} Qa5 $2 {[%emt 0:18:45]} (14... Qc7 $14) 15. Nd5 $2 {[%emt 0:02:11]} (15. Bxd6 $18 Bxd6 16. Qxd6) 15... Nxd5 $11 {[%emt 0:03:53]} 16. exd5 {[%emt 0:00:02]} O-O {[%emt 0:03:03] [#]} (16... e4 17. Qxe4 $1 Qxa3 18. Re1 $14) (16... f5 $11 {keeps the balance.} 17. c5 e4) 17. Nxe5 $1 $16 {[%emt 0:04:11][%cal Bf3e5,Be5g4,Bg4f6][%mdl 32]} Ba4 {[%emt 0:02:13]} 18. Re1 {[%emt 0:03:44][%cal Oe5g6]} Rc7 {[%emt 0:04:33]} (18... Rfe8 $142) 19. Ng4 {[%emt 0:04:40][%cal Oc4c5] White is more active.} Bc2 {[%emt 0:07:30] [#]} 20. Qg3 {[%emt 0:06:28] And now Nxh6+ would win.} ({Much less strong is} 20. Qxc2 Qxa3 21. Ne3 Bf6 $14) 20... h5 {[%emt 0:00:14]} (20... Qd2 $2 21. Bxd6 Bxd6 22. Nf6+ (22. Qxd6 Rxc4 23. Ne3 Ra4 $16) 22... Kh8 23. Qxd6 $18) (20... Bg6 $16) 21. Bxd6 $18 {[%emt 0:02:20]} ({Worse is} 21. Nh6+ Kh7 $11) 21... Bxd6 {[%emt 0:00:17]} 22. Nf6+ $1 {[%emt 0:00:08] Weighted Error Value: White=0.30/Black=0.58} 1-0